bitfinex/quotes_SOLUSD_20251007
["timestamp","ask_amount","ask_price","bid_price","bid_amount"]
[1759852484119,2.95545906,222.68,222.66,33.56]
[1759852484301,7.7890355,222.67,222.66,33.56]
[1759852484729,2.24545906,222.68,222.62,34.98]
[1759852484906,7.7890355,222.67,222.63,33.56]
[1759852485107,20.8,222.69,222.64,0.66]
[1759852485315,20.8,222.69,222.65,0.66]
[1759852485509,20.8,222.69,222.66,34.2]
[1759852485713,20.8,222.69,222.67,33.54]
[1759852486523,7.7890355,222.7,222.67,33.54]
[1759852486723,7.7890355,222.71,222.67,34.2]
[1759852486924,7.7890355,222.7,222.67,33.54]
[1759852487429,7.7890355,222.71,222.67,33.54]
[1759852488136,7.7890355,222.7,222.67,33.54]
[1759852489711,10.03420913,222.7,222.67,33.54]
[1759852490209,7.7890355,222.71,222.68,0.66]
[1759852490731,7.7890355,222.71,222.67,33.54]
[1759852491036,7.7890355,222.71,222.67,34.2]
[1759852491547,7.7890355,222.71,222.68,0.66]
[1759852491833,13.12084184,222.78,222.69,4.49054739]
[1759852492022,2.24436663,222.78,222.7,34.18]
[1759852492339,10.03340213,222.78,222.71,0.66]
[1759852492518,5.61056374,222.8,222.71,0.66]
[1759852492519,10.03322264,222.8,222.71,0.66]
[1759852492715,7.7890355,222.83,222.73,20.8]
[1759852492928,7.7890355,222.84,222.74,34.18]
[1759852493135,7.7890355,222.86,222.75,0.66]
[1759852493411,2.95350604,222.87,222.75,14.0431814]
[1759852493615,7.7890355,222.84,222.76,0.66]
[1759852493818,7.7890355,222.83,222.76,0.66]
[1759852494023,7.7890355,222.82,222.76,0.66]
[1759852494227,28.5890355,222.77,222.72,0.66]
[1759852494430,7.7890355,222.76,222.73,34.18]
[1759852494637,7.7890355,222.76,222.74,33.52]
[1759852494837,20.8,222.8,222.74,33.52]
[1759852495037,7.7890355,222.76,222.74,33.52]
[1759852495347,7.7890355,222.77,222.74,33.52]
[1759852496126,10.03351788,222.77,222.74,33.52]
[1759852496326,21.51,222.8,222.74,34.18]
[1759852496327,7.7890355,222.78,222.74,34.18]
[1759852496534,7.7890355,222.79,222.74,34.18]
[1759852496836,7.7890355,222.78,222.74,33.52]
[1759852497945,10.03343723,222.78,222.74,33.52]
[1759852498936,10.03343723,222.78,222.74,34.18]
[1759852499443,7.7890355,222.78,222.74,34.18]
[1759852499616,28.5890355,222.79,222.75,0.66]
[1759852499820,30.83330333,222.79,222.76,33.5]
[1759852500327,7.7890355,222.78,222.72,5.14982353]
[1759852500641,7.7890355,222.78,222.73,33.5]
[1759852500829,8.5090355,222.77,222.7,4.49020821]
[1759852501026,12.79392447,222.89,222.73,0.66]
[1759852501234,20.8,222.81,222.73,0.66]
[1759852501457,0.72,222.84,222.73,0.66]
[1759852501630,0.72,222.84,222.74,33.48]
[1759852501631,20.8,222.83,222.74,33.48]
[1759852501941,2.24436663,222.78,222.75,33.48]
[1759852502116,2.24436663,222.78,222.72,0.66]
[1759852502321,10.03340213,222.78,222.73,33.48]
[1759852502519,0.72,222.77,222.73,33.48]
[1759852502957,7.7890355,222.77,222.74,33.48]
[1759852503249,2.96450086,222.77,222.74,33.48]
[1759852503548,2.24456814,222.76,222.75,33.48]
[1759852503724,10.75360364,222.76,222.64,11.22881783]
[1759852503926,7.7890355,222.74,222.65,33.48]
[1759852504148,7.7890355,222.74,222.64,11.22881783]
[1759852504328,7.7890355,222.73,222.65,33.48]
[1759852504643,56.87647521,222.78,222.66,0.66]
[1759852504644,25.2,222.78,222.66,0.66]
[1759852504859,20.8,222.77,222.66,0.66]
[1759852505349,20.8,222.77,222.67,15.71832756]
[1759852505545,20.8,222.77,222.68,34.14]
[1759852505733,20.8,222.77,222.69,0.66]
[1759852506127,0.72,222.8,222.69,0.66]
[1759852506523,20.8,222.78,222.69,0.66]
[1759852506822,20.8,222.77,222.69,0.66]
[1759852507022,21.52,222.77,222.69,0.66]
[1759852507232,0.72,222.81,222.69,0.66]
[1759852507436,0.72,222.84,222.71,10.87647521]
[1759852507617,0.72,222.84,222.72,0.66]
[1759852507835,20.8,222.83,222.73,33.46]
[1759852508141,0.72,222.84,222.74,0.66]
[1759852508639,20.8,222.83,222.74,0.66]
[1759852509029,0.72,222.84,222.75,15.71268237]
[1759852509223,2.96338067,222.88,222.76,0.66]
[1759852509623,20.8,222.87,222.76,0.66]
[1759852509843,21.52,222.86,222.76,0.66]
[1759852511145,20.8,222.87,222.77,15.7112717]
[1759852511331,0.72,222.86,222.78,33.46]
[1759852511945,0.82,222.89,222.79,0.66]
[1759852512148,0.1,222.89,222.81,20.8]
[1759852512362,0.1,222.89,222.82,0.66]
[1759852512544,0.1,222.89,222.83,68.42]
[1759852512739,0.1,222.89,222.84,1.10875246]
[1759852513046,0.1,222.89,222.86,15.70492684]
[1759852513269,0.1,222.89,222.85,0.66]
[1759852513433,0.1,222.89,222.84,4.48752468]
[1759852513643,0.1,222.89,222.85,33.44]
[1759852514167,0.1,222.89,222.86,33.44]
[1759852514368,0.1,222.89,222.87,33.44]
[1759852514933,0.1,222.89,222.84,5.14752468]
[1759852515238,0.1,222.89,222.85,33.44]
[1759852515454,0.1,222.89,222.85,34.1]
[1759852515756,0.1,222.89,222.86,0.66]
[1759852516056,0.1,222.89,222.87,0.66]
[1759852516363,0.1,222.89,222.88,0.66]
[1759852516660,0.1,222.89,222.85,33.44]
[1759852516870,0.1,222.89,222.86,0.66]
[1759852517069,0.1,222.89,222.88,4.48671931]
[1759852517467,0.1,222.89,222.88,25.94671931]
[1759852517841,0.1,222.89,222.88,36.82319452]
[1759852518168,1e-08,222.89,222.88,50.03438879]
[1759852519260,1e-08,222.89,222.88,63.48438879]
[1759852519464,1e-08,222.89,222.88,96.90438879]
[1759852519965,1e-08,222.89,222.88,96.88438879]
[1759852520748,1e-08,222.89,222.88,72.55791358]
[1759852523147,1e-08,222.89,222.88,39.15791358]
[1759852523341,1e-08,222.89,222.88,72.55791358]
[1759852524563,1e-08,222.89,222.88,71.89791358]
[1759852524780,1e-08,222.89,222.88,72.55791358]
[1759852524960,1e-08,222.89,222.88,83.43438879]
[1759852525362,1e-08,222.89,222.88,83.41438879]
[1759852525563,1e-08,222.89,222.88,50.03438879]
[1759852525873,1e-08,222.89,222.88,71.87791358]
[1759852526062,1e-08,222.89,222.88,83.41438879]
[1759852526448,1e-08,222.89,222.88,96.86438879]
[1759852527348,0.2,222.98,222.92,20.8]
[1759852527548,0.2,222.98,222.93,33.38]
[1759852528248,0.2,222.98,222.93,34.1]
[1759852528574,0.2,222.98,222.96,20.8]
[1759852528776,0.2,222.98,222.97,33.36]
[1759852529082,0.2,222.98,222.96,20.8]
[1759852529376,0.87,222.98,222.97,33.36]
[1759852529683,0.87,222.98,222.97,37.84490828]
[1759852530072,0.2,222.98,222.97,37.84490828]
[1759852530752,0.87,222.98,222.97,4.48490828]
[1759852530969,0.2,222.98,222.97,37.84490828]
[1759852532980,0.87,222.98,222.95,4.4853106]
[1759852533160,0.67,222.97,222.96,33.34]
[1759852534077,0.67,222.97,222.96,37.82510943]
[1759852534277,0.2,222.98,222.96,37.82510943]
[1759852535986,0.2,222.98,222.96,38.54510943]
[1759852536171,0.2,222.98,222.96,37.82510943]
[1759852536374,0.2,222.98,222.96,38.54510943]
[1759852536563,1e-08,222.98,222.97,11.59647521]
[1759852536763,1e-08,222.98,222.97,25.49496603]
[1759852538295,1e-08,222.98,222.97,29.97987431]
[1759852539491,1e-08,223.05,223.04,20.8]
[1759852539804,1e-08,223.05,223.04,89.06]
[1759852539991,1e-08,223.05,223.04,55.74]
[1759852540173,1e-08,223.05,223.04,89.06]
[1759852540376,1e-08,223.05,223.04,93.54350071]
[1759852540571,1e-08,223.05,223.04,60.22350071]
[1759852540785,1e-08,223.05,223.04,93.54350071]
[1759852542276,1e-08,223.05,223.04,159.95067525]
[1759852542578,1e-08,223.05,223.04,160.65067525]
[1759852542781,1e-08,223.05,223.04,74.65067525]
[1759852542978,1e-08,223.05,223.04,108.39902532]
[1759852543177,1e-08,223.05,223.04,74.65067525]
[1759852543401,1e-08,223.05,223.04,108.39902532]
[1759852543694,1e-08,223.05,223.04,107.95067525]
[1759852546108,1e-08,223.05,223.04,60.22350071]
[1759852546293,1e-08,223.05,223.04,108.45055726]
[1759852546494,1e-08,223.05,223.04,108.00220719]
[1759852547481,1e-08,223.05,223.04,108.70220719]
[1759852547891,1e-08,223.05,223.04,75.42220719]
[1759852548100,0.2,223.09,223.08,20.8]
[1759852548101,1e-08,223.09,223.08,20.8]
[1759852548397,0.71,223.2,223.12,20.8]
[1759852548579,0.71,223.2,223.13,33.28]
[1759852548773,15.51936216,223.35,223.13,33.28]
[1759852548774,0.81,223.17,223.16,20.8]
[1759852549092,0.1,223.17,223.16,54.08]
[1759852549490,0.2,223.35,223.16,64.95647521]
[1759852549790,0.2,223.35,223.17,20.8]
[1759852549791,0.71,223.2,223.17,20.8]
[1759852549986,0.71,223.19,223.18,33.26]
[1759852550296,0.71,223.22,223.18,33.26]
[1759852550474,0.71,223.2,223.14,38.09267724]
[1759852550678,0.71,223.2,223.18,4.48068823]
[1759852550880,0.71,223.2,223.19,33.26]
[1759852551283,0.71,223.2,223.18,4.48068823]
[1759852551500,0.71,223.19,223.18,15.68240881]
[1759852551678,0.71,223.19,223.18,48.94240881]
[1759852552283,0.91,223.23,223.18,15.68240881]
[1759852552486,0.2,223.23,223.19,33.26]
[1759852552785,0.2,223.23,223.2,33.26]
[1759852554412,1e-08,223.21,223.2,33.26]
[1759852554775,1e-08,223.21,223.2,37.74028673]
[1759852555184,1e-08,223.23,223.2,48.94100357]
[1759852555391,1e-08,223.23,223.21,10.87647521]
[1759852555602,1e-08,223.28,223.23,20.8]
[1759852555776,1e-08,223.28,223.27,36.2362437]
[1759852555976,1e-08,223.28,223.27,104.3962437]
[1759852556405,0.71000001,223.28,223.27,104.3962437]
[1759852556785,0.71000001,223.28,223.27,108.87512577]
[1759852557509,0.71000001,223.28,223.27,88.07512577]
[1759852558480,0.71000001,223.28,223.27,68.16]
[1759852558784,0.71000001,223.28,223.27,39.39888207]
[1759852559012,0.71000001,223.28,223.27,72.61888207]
[1759852559193,0.71000001,223.28,223.27,34.92]
[1759852559507,0.71000001,223.28,223.27,68.14]
[1759852559690,0.71000001,223.28,223.27,72.61888207]
[1759852560290,1e-08,223.28,223.27,72.61888207]
[1759852560492,1e-08,223.28,223.27,39.84677027]
[1759852560698,1e-08,223.28,223.27,72.61888207]
[1759852561303,1e-08,223.28,223.27,83.49535728]
[1759852561499,1e-08,223.28,223.27,84.16535728]
[1759852561704,1e-08,223.28,223.27,50.94535728]
[1759852561906,1e-08,223.28,223.27,83.49535728]
[1759852562116,1e-08,223.28,223.27,84.16535728]
[1759852562288,0.2,223.35,223.3,20.8]
[1759852562490,0.2,223.35,223.31,33.22]
[1759852562808,0.67,223.34,223.33,4.47767877]
[1759852563313,0.67,223.34,223.31,25.27807979]
[1759852563487,0.2,223.35,223.32,33.2]
[1759852563682,0.67,223.34,223.32,33.2]
[1759852563885,0.2,223.35,223.31,4.47807979]
[1759852563886,0.67,223.33,223.31,4.47807979]
[1759852564086,0.2,223.35,223.31,4.47807979]
[1759852564286,0.2,223.35,223.32,33.2]
[1759852564691,0.67,223.34,223.32,33.2]
[1759852564888,0.67,223.33,223.31,4.47807979]
[1759852565215,0.67,223.33,223.32,33.2]
[1759852565404,0.2,223.35,223.31,15.67327928]
[1759852565714,0.67,223.34,223.32,33.2]
[1759852565899,0.67,223.33,223.32,33.2]
[1759852566792,0.67,223.33,223.31,4.47807979]
[1759852567004,0.67,223.33,223.32,33.18]
[1759852567330,0.2,223.35,223.32,33.18]
[1759852568205,1e-08,223.35,223.34,20.8]
[1759852568528,1e-08,223.35,223.34,53.98]
[1759852568746,1e-08,223.35,223.34,54.65]
[1759852568906,1e-08,223.35,223.34,59.12747828]
[1759852570816,1e-08,223.35,223.34,58.45747828]
[1759852571615,0.67000001,223.35,223.34,25.27747828]
[1759852571831,0.67000001,223.35,223.34,58.45747828]
[1759852572024,0.67000001,223.35,223.34,37.65747828]
[1759852572615,0.67000001,223.35,223.34,25.27747828]
[1759852573021,0.67000001,223.35,223.28,15.67538516]
[1759852573218,0.67,223.34,223.29,33.16]
[1759852573534,0.67,223.34,223.32,20.8]
[1759852573737,0.67,223.34,223.33,33.16]
[1759852573942,1e-08,223.35,223.33,33.16]
[1759852574434,0.67,223.34,223.28,15.67538516]
[1759852574746,0.67,223.33,223.29,33.16]
[1759852574944,0.67,223.32,223.23,16.11365062]
[1759852575114,0.67,223.31,223.24,68.06]
[1759852575315,0.67,223.3,223.24,34.9]
[1759852575544,0.67,223.29,223.24,34.9]
[1759852575742,0.67,223.28,223.25,33.16]
[1759852575918,0.67,223.27,223.26,33.16]
[1759852577366,0.67,223.32,223.29,20.8]
[1759852577523,1e-08,223.35,223.3,53.96]
[1759852577731,1e-08,223.35,223.31,33.16]
[1759852577932,1e-08,223.35,223.34,20.8]
[1759852578248,1e-08,223.35,223.27,26.55256245]
[1759852578249,1e-08,223.35,223.33,20.8]
[1759852578421,1e-08,223.35,223.34,33.16]
[1759852578631,1e-08,223.35,223.34,20.8]
[1759852578828,0.67000001,223.35,223.34,53.94]
[1759852579036,0.67000001,223.35,223.34,58.41747828]
[1759852579336,1e-08,223.35,223.34,58.41747828]
[1759852579525,0.67000001,223.35,223.34,58.41747828]
[1759852579723,1e-08,223.35,223.34,58.41747828]
[1759852580345,1e-08,223.35,223.34,25.27747828]
[1759852580660,1e-08,223.35,223.34,58.41747828]
[1759852581032,1e-08,223.35,223.34,93.31747828]
[1759852581533,0.67000001,223.35,223.34,93.31747828]
[1759852582051,1e-08,223.35,223.34,93.31747828]
[1759852583163,1e-08,223.35,223.34,60.17747828]
[1759852583353,0.67000001,223.35,223.34,93.31747828]
[1759852583558,1e-08,223.35,223.34,60.17747828]
[1759852583757,0.67000001,223.35,223.34,39.37747828]
[1759852584054,0.67000001,223.35,223.34,4.47747828]
[1759852584266,1e-08,223.35,223.34,72.51747828]
[1759852584638,1e-08,223.35,223.34,73.18747828]
[1759852584934,1e-08,223.35,223.34,72.51747828]
[1759852585147,1e-08,223.35,223.34,73.18747828]
[1759852585732,1e-08,223.35,223.34,73.16747828]
[1759852586468,1e-08,223.35,223.34,39.37747828]
[1759852586631,0.67000001,223.35,223.34,39.37747828]
[1759852586832,0.67000001,223.35,223.34,72.49747828]
[1759852587152,1e-08,223.35,223.34,72.49747828]
[1759852587748,1e-08,223.35,223.34,39.37747828]
[1759852588157,1e-08,223.35,223.34,72.49747828]
[1759852589263,1e-08,223.35,223.34,39.37747828]
[1759852589489,0.67000001,223.35,223.34,39.37747828]
[1759852589656,0.67000001,223.35,223.34,72.49747828]
[1759852590353,1e-08,223.35,223.34,72.49747828]
[1759852590753,0.67000001,223.35,223.34,68.02]
[1759852591281,0.67000001,223.35,223.34,72.49747828]
[1759852591672,0.67000001,223.35,223.32,25.27772141]
[1759852591850,0.67,223.34,223.33,68.0]
[1759852592056,0.67,223.34,223.33,34.88]
[1759852592277,0.67,223.34,223.33,68.0]
[1759852593056,0.67,223.34,223.33,72.47767877]
[1759852593585,0.67,223.34,223.33,68.0]
[1759852593903,0.67,223.34,223.33,33.12]
[1759852594583,1e-08,223.35,223.27,34.88]
[1759852595201,0.67,223.34,223.28,4.47868147]
[1759852595402,0.67,223.34,223.28,37.57868147]
[1759852595902,0.67,223.34,223.28,15.67538516]
[1759852596067,0.67,223.34,223.29,33.1]
[1759852596795,0.67,223.34,223.28,15.67538516]
[1759852596796,1e-08,223.35,223.28,15.67538516]
[1759852596979,0.67,223.33,223.29,33.1]
[1759852597375,0.67,223.32,223.27,34.88]
[1759852597576,0.67,223.31,223.28,33.1]
[1759852597775,0.67,223.3,223.28,33.1]
[1759852597993,0.67,223.29,223.28,33.1]
[1759852598697,0.71,223.29,223.28,33.1]
[1759852598899,0.71,223.29,223.27,34.88]
[1759852599097,21.51,223.28,223.27,34.88]
[1759852599294,21.51,223.28,223.27,67.98]
[1759852599598,2.94934073,223.28,223.27,67.98]
[1759852600804,23.74934073,223.28,223.27,67.98]
[1759852602297,23.74934073,223.28,223.27,34.88]
[1759852602498,23.74934073,223.28,223.27,67.98]
[1759852603416,23.74934073,223.28,223.27,34.88]
[1759852603417,10.68461449,223.28,223.27,34.88]
[1759852603576,10.68461449,223.28,223.27,67.98]
[1759852603783,23.74934073,223.28,223.27,67.98]
[1759852604526,2.23914017,223.3,223.27,67.98]
[1759852604884,0.71,223.33,223.27,72.45882306]
[1759852606414,2.94884465,223.33,223.27,72.45882306]
[1759852606618,2.94884465,223.33,223.27,67.98]
[1759852606996,1e-08,223.35,223.27,72.45886675]
[1759852607189,1e-08,223.35,223.27,73.13886675]
[1759852607598,2.23865318,223.35,223.27,73.13886675]
[1759852608003,0.71,223.34,223.27,72.45886675]
[1759852608192,2.23865318,223.35,223.27,72.45886675]
[1759852608402,1e-08,223.35,223.28,0.68]
[1759852608607,1e-08,223.35,223.3,4.47828034]
[1759852608820,1e-08,223.35,223.31,33.1]
[1759852609121,1e-08,223.35,223.31,33.78]
[1759852609320,1e-08,223.35,223.32,0.68]
[1759852609494,1e-08,223.35,223.33,53.9]
[1759852609991,1e-08,223.35,223.34,0.68]
[1759852610717,1e-08,223.35,223.34,38.25747828]
[1759852612401,1e-08,223.35,223.34,49.13395349]
[1759852613121,1e-08,223.35,223.34,5.15747828]
[1759852613298,1e-08,223.35,223.34,38.23747828]
[1759852613502,1e-08,223.35,223.34,5.15747828]
[1759852613702,1e-08,223.35,223.34,38.23747828]
[1759852614314,1e-08,223.35,223.34,37.55747828]
[1759852614615,1e-08,223.35,223.34,38.23747828]
[1759852615624,1e-08,223.35,223.34,0.68]
[1759852615798,0.71000001,223.35,223.34,33.08]
[1759852615997,1e-08,223.35,223.34,33.08]
[1759852617494,1e-08,223.35,223.34,37.55747828]
[1759852619329,1e-08,223.35,223.34,4.47747828]
[1759852619534,1e-08,223.35,223.34,37.53747828]
[1759852620619,1e-08,223.35,223.34,33.06]
[1759852621617,0.72000001,223.35,223.29,4.47848089]
[1759852621822,0.72000001,223.35,223.3,33.06]
[1759852622137,0.72000001,223.35,223.3,33.72]
[1759852622138,1e-08,223.35,223.3,33.72]
[1759852622648,1e-08,223.35,223.31,4.47807979]
[1759852622852,1e-08,223.35,223.32,33.06]
[1759852623147,1e-08,223.35,223.33,33.06]
[1759852623440,1e-08,223.35,223.34,33.06]
[1759852623625,1e-08,223.35,223.31,4.47807979]
[1759852623816,0.72,223.34,223.3,20.8]
[1759852624021,0.72,223.33,223.31,33.06]
[1759852624343,0.72,223.33,223.27,39.35887165]
[1759852624539,0.72,223.33,223.28,33.06]
[1759852624945,1e-08,223.35,223.29,5.13848089]
[1759852625251,1e-08,223.35,223.3,33.06]
[1759852625628,1e-08,223.35,223.3,33.72]
[1759852625827,1e-08,223.35,223.27,34.88]
[1759852625828,0.72,223.34,223.27,39.35886713]
[1759852626032,0.72,223.33,223.28,33.06]
[1759852626241,0.72,223.32,223.28,33.06]
[1759852626951,0.72000001,223.35,223.29,4.47848089]
[1759852627338,0.72,223.34,223.28,33.06]
[1759852627645,2.23868413,223.35,223.28,33.06]
[1759852627646,1e-08,223.35,223.31,20.8]
[1759852627822,1e-08,223.35,223.32,33.06]
[1759852628220,1e-08,223.35,223.33,33.06]
[1759852628647,1e-08,223.35,223.34,33.06]
[1759852629964,1e-08,223.35,223.3,20.8]
[1759852630252,0.72,223.34,223.31,33.04]
[1759852630550,0.72,223.34,223.27,39.35888168]
[1759852630551,0.72,223.33,223.32,33.04]
[1759852630932,2.95883938,223.33,223.32,33.04]
[1759852631449,8.55593784,223.33,223.32,33.04]
[1759852632645,2.95883938,223.33,223.32,33.04]
[1759852632848,1e-08,223.35,223.32,33.04]
[1759852633428,1e-08,223.35,223.29,0.66]
[1759852633630,1e-08,223.35,223.3,53.84]
[1759852634046,1e-08,223.35,223.31,0.66]
[1759852634445,1e-08,223.35,223.32,33.04]
[1759852635750,1e-08,223.35,223.33,0.66]
[1759852636232,1e-08,223.35,223.32,37.5178112]
[1759852636438,1e-08,223.35,223.33,0.66]
[1759852636653,1e-08,223.35,223.32,37.5178112]
[1759852636954,1e-08,223.35,223.32,38.1778112]
[1759852637466,1e-08,223.35,223.32,33.04]
[1759852637838,1e-08,223.35,223.28,11.19654498]
[1759852638156,1e-08,223.35,223.31,0.66]
[1759852638341,1e-08,223.35,223.32,33.04]
[1759852639552,1e-08,223.35,223.33,33.04]
[1759852639753,0.72,223.34,223.3,20.8]
[1759852640060,0.72,223.33,223.31,33.04]
[1759852641134,1e-08,223.35,223.31,33.04]
[1759852641873,0.72000001,223.35,223.31,33.04]
[1759852642163,1e-08,223.35,223.32,33.02]
[1759852642554,0.72000001,223.35,223.32,33.02]
[1759852643175,1e-08,223.35,223.32,38.15780655]
[1759852643748,1e-08,223.35,223.32,33.02]
[1759852644066,1e-08,223.35,223.32,38.15784482]
[1759852644648,1e-08,223.35,223.33,0.66]
[1759852644852,1e-08,223.35,223.34,20.8]
[1759852645252,1e-08,223.35,223.34,25.93747828]
[1759852645469,0.1,223.44,223.34,37.13117399]
[1759852645683,0.1,223.44,223.38,20.8]
[1759852645851,0.1,223.44,223.39,33.02]
[1759852646174,0.1,223.44,223.39,33.68]
[1759852646668,0.1,223.44,223.39,0.66]
[1759852646969,0.1,223.44,223.34,15.67117399]
[1759852646970,0.1,223.44,223.4,33.72]
[1759852647353,0.1,223.44,223.41,4.47607537]
[1759852647957,0.1,223.44,223.43,20.8]
[1759852648152,0.1,223.44,223.43,53.82]
[1759852648373,0.1,223.44,223.43,54.52]
[1759852648869,0.1,223.58,223.47,20.8]
[1759852649067,0.77,223.58,223.48,67.9]
[1759852649262,0.67,223.57,223.49,4.47447313]
[1759852649571,0.67,223.57,223.5,33.0]
[1759852649770,0.1,223.58,223.48,34.88]
[1759852649954,4.85096669,223.55,223.49,33.0]
[1759852650150,0.67,223.54,223.49,33.0]
[1759852650563,2.90645969,223.57,223.49,33.0]
[1759852650762,5.14287203,223.57,223.49,33.0]
[1759852651078,5.14287203,223.57,223.48,39.35466042]
[1759852651379,0.67,223.56,223.49,33.0]
[1759852651578,4.47327219,223.55,223.49,33.0]
[1759852651875,4.47327219,223.55,223.48,34.88]
[1759852652085,4.57268966,223.58,223.49,33.52]
[1759852652378,5.52096669,223.57,223.48,34.88]
[1759852652561,4.57268966,223.58,223.48,34.88]
[1759852652562,5.52096669,223.56,223.5,33.0]
[1759852652755,0.67,223.56,223.5,33.0]
[1759852653659,5.14308213,223.56,223.5,33.0]
[1759852653859,5.14308213,223.56,223.5,37.47426226]
[1759852654167,0.1,223.58,223.5,37.47426226]
[1759852654573,0.1,223.58,223.5,37.99426226]
[1759852654766,0.1,223.58,223.53,20.8]
[1759852655095,0.1,223.58,223.54,33.0]
[1759852655269,0.1,223.58,223.54,33.52]
[1759852655465,0.1,223.58,223.53,20.8]
[1759852655466,0.1,223.58,223.55,0.52]
[1759852655667,0.1,223.58,223.56,37.47298]
[1759852655867,0.67,223.57,223.53,20.8]
[1759852656204,0.67,223.56,223.48,55.68]
[1759852656367,0.67,223.55,223.49,34.88]
[1759852656761,0.67,223.55,223.5,32.98]
[1759852656966,0.67,223.55,223.51,32.98]
[1759852657287,4.4734723,223.54,223.49,34.88]
[1759852657599,0.1,223.58,223.5,33.5]
[1759852658664,4.57274863,223.58,223.49,39.35444572]
[1759852658890,0.66,223.57,223.5,32.98]
[1759852659381,15.65575236,223.56,223.49,34.88]
[1759852659579,0.66,223.55,223.5,32.98]
[1759852659788,15.65575236,223.56,223.49,34.88]
[1759852659986,4.4730721,223.56,223.51,32.98]
[1759852660168,0.66,223.55,223.52,32.98]
[1759852660370,0.66,223.54,223.52,32.98]
[1759852660662,0.66,223.53,223.52,32.98]
[1759852661279,0.66,223.53,223.49,34.88]
[1759852661490,0.66,223.53,223.5,32.98]
[1759852661984,4.47327219,223.55,223.5,32.98]
[1759852662186,15.65645268,223.55,223.5,32.98]
[1759852662485,0.66,223.54,223.5,32.98]
[1759852663692,0.66,223.54,223.51,32.98]
[1759852663900,4.47367243,223.53,223.51,32.98]
[1759852664399,0.66,223.55,223.51,32.98]
[1759852664599,0.66,223.54,223.51,32.98]
[1759852664893,15.6550521,223.57,223.49,34.88]
[1759852665115,0.66,223.56,223.5,32.98]
[1759852665288,0.1,223.58,223.53,20.8]
[1759852665613,13.42011675,223.78,223.58,31.67647521]
[1759852665909,5.1299081,223.72,223.62,20.8]
[1759852666200,0.66,223.71,223.63,32.98]
[1759852666389,0.66,223.71,223.64,32.98]
[1759852666591,0.66,223.7,223.65,32.98]
[1759852666796,21.46,223.69,223.65,32.98]
[1759852666984,0.66,223.68,223.66,32.96]
[1759852667190,0.66,223.68,223.67,32.96]
[1759852667386,20.8,223.65,223.5,13.70061502]
[1759852667703,20.8,223.6,223.5,13.70061502]
[1759852667879,4.47247193,223.59,223.51,0.42]
[1759852668589,4.47247193,223.59,223.52,32.96]
[1759852670601,15.65365176,223.59,223.52,32.96]
[1759852671398,4.47247193,223.59,223.52,32.96]
[1759852671705,11.17580547,223.7,223.55,20.8]
[1759852671880,11.17580547,223.7,223.5,34.51207963]
[1759852671881,0.66,223.69,223.51,4.47407274]
[1759852672081,0.66,223.73,223.56,0.42]
[1759852672286,0.66,223.73,223.6,20.8]
[1759852672481,0.66,223.72,223.61,32.96]